bitfinex-derivatives/quotes_SOLF0:USTF0_20250311
["timestamp","ask_amount","ask_price","bid_price","bid_amount"]
[1741728873987,8.838e-05,127.02,127.01,20.73302865]
[1741728874192,12.85822865,127.07,127.05,7.8719]
[1741728874692,12.85822865,127.07,127.03,29.52]
[1741728875291,12.85822865,127.07,127.06,7.8717]
[1741728876699,12.85822865,127.07,127.05,7.872]
[1741728877192,12.85822865,127.07,127.06,7.8717]
[1741728877792,12.85822865,127.07,127.04,0.05195824]
[1741728878097,12.85822865,127.07,127.05,7.8719]
[1741728879203,20.72952865,127.07,127.04,7.92455824]
[1741728879406,12.85822865,127.05,127.04,7.92455824]
[1741728879999,14.82620464,127.05,127.04,7.92455824]
[1741728880800,14.82620464,127.05,127.04,0.05195824]
[1741728881005,14.82620464,127.05,127.0,29.44]
[1741728881299,12.85822865,127.01,126.98,289.32]
[1741728881497,1.96797599,127.0,126.99,7.8756]
[1741728883603,1.96797599,127.0,126.98,0.05830137]
[1741728883803,14.82620464,126.99,126.98,0.05830137]
[1741728884304,14.82722601,126.99,126.98,0.05830137]
[1741728885406,22.70322601,126.99,126.98,0.05830137]
[1741728886203,22.70347415,126.99,126.98,0.05830137]
[1741728889309,14.82747415,126.99,126.98,0.05830137]
[1741728890906,1.9692455,126.99,126.98,0.05830137]
[1741728891810,1.9692455,126.99,126.98,7.93490137]
[1741728892005,1.96896468,126.99,126.98,0.05830137]
[1741728892509,1.96896468,126.99,126.98,7.93490137]
[1741728894011,12.91636419,127.01,126.99,7.8756]
[1741728894212,1.96896201,127.0,126.99,7.8756]
[1741728895112,1.96896201,127.0,126.98,7.93480137]
[1741728895311,1.96896201,126.99,126.98,7.93480137]
[1741728899611,1.96899214,126.99,126.98,7.93480137]
[1741728901617,1.96895968,126.99,126.98,7.93480137]
[1741728905318,20.79156419,127.01,126.98,7.93480137]
[1741728905509,1.96896468,127.0,126.98,7.93480137]
[1741728905814,1.96896468,126.99,126.98,7.93480137]
[1741728907119,14.82719333,126.99,126.98,0.05830137]
[1741728907511,22.70319333,126.99,126.98,0.05830137]
[1741728908213,7.8784,126.96,126.93,259.82]
[1741728908421,1.96896468,126.95,126.93,29.44]
[1741728908725,20.73662865,126.96,126.9,12.85822865]
[1741728908726,1.96896468,126.94,126.9,12.85822865]
[1741728908916,20.73662865,126.96,126.92,40.2189]
[1741728909114,1.96954155,126.95,126.92,40.2189]
[1741728909416,1.96954155,126.94,126.92,40.27801016]
[1741728909615,0.05814475,126.95,126.92,40.27801016]
[1741728909815,1.96954992,126.94,126.92,48.15801016]
[1741728910019,0.05814475,126.95,126.92,48.15801016]
[1741728910209,1.96955057,126.94,126.93,7.8797]
[1741728910520,1.96955057,126.94,126.92,40.27801016]
[1741728910819,0.05814475,126.95,126.93,7.8797]
[1741728911019,1.9695834,126.94,126.92,40.27801016]
[1741728911213,0.05814475,126.95,126.92,40.27801016]
[1741728911422,1.96959124,126.94,126.92,48.15781016]
[1741728911624,0.05814475,126.95,126.92,48.15781016]
[1741728911919,1.96959222,126.94,126.92,0.05911016]
[1741728912115,1.96959222,126.93,126.92,0.05911016]
[1741728913523,1.96959222,126.93,126.92,7.93941016]
[1741728914122,12.85822865,126.94,126.92,7.93941016]
[1741728915025,1.96973939,126.93,126.92,7.93941016]
[1741728915224,12.85822865,126.94,126.92,7.93941016]
[1741728915824,1.96976063,126.93,126.92,7.93941016]
[1741728916223,1.96976687,126.93,126.92,7.93941016]
[1741728916826,1.96976348,126.93,126.92,7.93941016]
[1741728918825,0.05814475,126.95,126.93,7.8796]
[1741728919024,1.96970584,126.94,126.93,7.8796]
[1741728920617,1.96957717,126.94,126.93,7.8797]
[1741728923632,0.05814475,126.95,126.92,0.05911016]
[1741728923832,0.05814475,126.95,126.94,7.8791]
[1741728924133,2.02771924,126.95,126.94,7.8791]
[1741728924328,0.05814475,126.95,126.94,7.8791]
[1741728924631,2.02771924,126.95,126.94,7.8791]
[1741728925234,2.02770623,126.95,126.94,7.8791]
[1741728929241,2.02770623,126.95,126.93,7.8794]
[1741728929443,14.82779013,126.94,126.93,7.8794]
[1741728931236,14.82779013,126.94,126.92,0.05911016]
[1741728931443,1.96956148,126.93,126.86,29.44]
[1741728931632,12.85822865,126.9,126.86,29.44]
[1741728931836,1.96956148,126.89,126.86,29.44]
[1741728932038,1.96956148,126.88,126.86,37.3236]
[1741728932240,12.85822865,126.9,126.86,37.3236]
[1741728932437,1.97040865,126.89,126.87,0.05220363]
[1741728932637,1.97040865,126.88,126.87,0.05220363]
[1741728933744,14.8286373,126.88,126.87,0.05220363]
[1741728934942,22.7114373,126.88,126.87,0.05220363]
[1741728937149,14.8286373,126.88,126.87,0.05220363]
[1741728937747,22.7114373,126.88,126.87,0.05220363]
[1741728942351,52.1514373,126.88,126.87,0.05220363]
[1741728944862,52.15219811,126.88,126.87,0.05220363]
[1741728948761,52.15222116,126.88,126.87,0.05220363]
[1741728955773,22.71222116,126.88,126.87,0.05220363]
[1741728955975,14.82942116,126.88,126.87,0.05220363]
[1741728958373,22.71192745,126.88,126.87,0.05220363]
[1741728959871,14.82912745,126.88,126.87,0.05220363]
[1741728961477,22.71192745,126.88,126.87,0.05220363]
[1741728969579,20.74102865,126.88,126.87,0.05220363]
[1741728969780,22.71197034,126.88,126.87,0.05220363]
[1741728979292,22.71210753,126.88,126.87,0.05220363]
[1741728979789,7.885,126.85,126.82,7.8863]
[1741728979991,14.82930753,126.84,126.82,7.8863]
[1741728980188,1.97107888,126.83,126.82,7.8863]
[1741728982890,1.97134408,126.83,126.82,7.8863]
[1741728985291,12.91575985,126.84,126.81,36.90144971]
[1741728985594,12.91575985,126.84,126.83,7.8859]
[1741728986097,14.88704888,126.84,126.83,7.8859]
[1741728986695,14.88700759,126.84,126.83,7.8859]
[1741728987098,14.88700759,126.84,126.82,7.8863]
[1741728987291,1.97124774,126.83,126.82,7.8863]
[1741728990196,1.97125331,126.83,126.82,7.8863]
[1741728992093,1.9712615,126.83,126.82,7.8863]
[1741728993989,1.9712971,126.83,126.82,7.8863]
[1741728994995,1.9712971,126.83,126.81,44.78824971]
[1741728995195,1.9712971,126.82,126.81,44.78824971]
[1741728995696,1.9712971,126.82,126.81,0.06014971]
[1741728995899,1.97154996,126.82,126.81,0.06014971]
[1741728996801,1.97154996,126.82,126.81,7.94694971]
[1741728997401,1.97154996,126.82,126.81,0.06014971]
[1741728997699,1.97154996,126.82,126.81,7.94734971]
[1741728997896,1.97159233,126.82,126.81,7.94734971]
[1741728998693,0.0575312,126.84,126.83,7.8859]
[1741728998996,12.85822865,126.88,126.83,29.44]
[1741728999593,12.85822865,126.88,126.83,42.29822865]
[1741729000000,0.0573427,126.87,126.84,0.05373095]
[1741729000903,0.0573427,126.87,126.86,7.8841]
[1741729010805,2.02834222,126.87,126.85,7.8844]
[1741729011004,1.97099952,126.86,126.85,7.8844]
[1741729011304,1.97099952,126.86,126.84,0.05373095]
[1741729011504,0.0573427,126.87,126.84,0.05373095]
[1741729011505,1.97099952,126.85,126.84,0.05373095]
[1741729012406,1.97099952,126.85,126.84,7.93903095]
[1741729014209,1.97099952,126.85,126.84,0.05373095]
[1741729014807,9.85569952,126.85,126.84,0.05373095]
[1741729018204,1.97099952,126.85,126.84,0.05373095]
[1741729024122,1.97099952,126.85,126.84,7.93903095]
[1741729024622,1.97116903,126.85,126.84,7.93903095]
[1741729028223,1.97116903,126.85,126.84,0.05373095]
[1741729029023,1.97116903,126.85,126.84,7.93903095]
[1741729030417,1.97110424,126.85,126.84,7.93903095]
[1741729030820,1.97110424,126.85,126.84,37.33903095]
[1741729036828,1.97087683,126.85,126.84,37.33903095]
[1741729038127,0.0573427,126.87,126.84,29.45373095]
[1741729038327,1.97093483,126.86,126.84,29.45373095]
[1741729038627,1.97093483,126.85,126.84,37.33903095]
[1741729046738,0.0573427,126.87,126.84,29.45373095]
[1741729046939,0.0573427,126.87,126.86,7.8841]
[1741729048439,2.02823557,126.87,126.86,7.8841]
[1741729050533,2.02823386,126.87,126.86,7.8841]
[1741729054745,2.02821216,126.87,126.86,7.8841]
[1741729056144,2.02821216,126.87,126.84,32.95633095]
[1741729056344,1.97086946,126.86,126.85,7.8844]
[1741729056544,1.97086946,126.86,126.84,32.95633095]
[1741729056744,1.97086946,126.85,126.84,29.45373095]
[1741729057041,1.97086946,126.85,126.84,37.33873095]
[1741729058446,7.9410427,126.87,126.84,37.33873095]
[1741729058643,1.97103913,126.86,126.84,37.33873095]
[1741729058944,1.97103913,126.85,126.84,37.33873095]
[1741729060045,1.97103913,126.85,126.84,7.93873095]
[1741729060441,1.97099589,126.85,126.84,0.05373095]
[1741729060642,1.97099589,126.85,126.84,7.93903095]
[1741729060842,1.9709959,126.85,126.84,7.93903095]
[1741729065144,1.9709959,126.85,126.84,0.05373095]
[1741729065345,9.8556959,126.85,126.84,0.05373095]
[1741729068050,9.8560028,126.85,126.84,0.05373095]
[1741729068249,1.9713028,126.85,126.84,0.05373095]
[1741729069955,1.97130245,126.85,126.84,0.05373095]
[1741729072654,9.85600245,126.85,126.84,0.05373095]
[1741729077556,9.85641763,126.85,126.84,0.05373095]
[1741729077961,1.97171763,126.85,126.78,310.32692865]
[1741729078149,7.8873,126.81,126.78,37.2687]
[1741729078451,1.97171763,126.8,126.78,29.38]
[1741729078657,1.97171763,126.79,126.77,37.2694]
[1741729078952,1.97171763,126.78,126.77,37.2694]
[1741729079154,1.97171763,126.78,126.77,37.32451597]
[1741729079656,0.05569097,126.79,126.78,7.889]
[1741729079852,2.02745588,126.79,126.78,7.889]
[1741729081252,9.91625588,126.79,126.77,0.05511597]
[1741729081550,1.97176491,126.78,126.77,0.05511597]
[1741729082156,22.71899356,126.78,126.77,0.05511597]
[1741729082855,14.82999356,126.78,126.77,0.05511597]
[1741729085251,1.97176491,126.78,126.77,0.05511597]
[1741729086256,1.97176491,126.78,126.77,7.94481597]
[1741729086853,1.97176491,126.78,126.77,0.05511597]
[1741729096965,9.86076491,126.78,126.77,0.05511597]
[1741729102968,9.86160862,126.78,126.77,0.05511597]
[1741729103965,1.97260862,126.78,126.77,0.05511597]
[1741729104568,9.86160862,126.78,126.77,0.05511597]
[1741729105370,1.97260862,126.78,126.77,0.05511597]
[1741729105877,20.80271962,126.79,126.77,0.05511597]
[1741729106170,1.97256261,126.78,126.77,0.05511597]
[1741729108473,1.97260862,126.78,126.77,0.05511597]
[1741729108672,7.889,126.78,126.77,0.05511597]
[1741729109374,9.86159483,126.78,126.77,0.05511597]
[1741729109565,7.889,126.78,126.77,0.05511597]
[1741729110174,9.86159483,126.78,126.77,0.05511597]
[1741729120976,9.86159483,126.78,126.72,42.21822865]
[1741729120977,31.33259483,126.78,126.71,3.5604]
[1741729121179,12.85822865,126.74,126.71,3.5604]
[1741729121378,1.97259483,126.73,126.71,3.5604]
[1741729121579,22.72362348,126.72,126.71,3.5604]
[1741729122288,14.83082348,126.72,126.7,32.706878]
[1741729122573,1.97259483,126.71,126.7,32.706878]
[1741729126081,1.97259483,126.71,126.7,0.05398638]
[1741729129086,22.72422348,126.71,126.7,0.05398638]
[1741729129290,22.72422348,126.71,126.62,87.07437767]
[1741729129291,17.19082348,126.71,126.62,87.07437767]
[1741729129483,12.85822865,126.65,126.62,87.07437767]
[1741729129682,12.85822865,126.65,126.62,94.97287767]
[1741729130085,1.97409513,126.64,126.62,94.97287767]
[1741729130283,12.85822865,126.65,126.62,95.02924762]
[1741729130489,12.90847625,126.65,126.62,95.02924762]
[1741729132390,12.90847625,126.65,126.62,7.95486995]
[1741729132590,12.85822865,126.63,126.62,0.05636995]
[1741729132990,14.83267108,126.63,126.62,0.05636995]
[1741729134185,12.85822865,126.63,126.62,0.05636995]
[1741729135094,14.83279082,126.63,126.62,0.05636995]
[1741729135289,12.85822865,126.63,126.62,0.05636995]
[1741729137594,20.75662865,126.63,126.62,0.05636995]
[1741729138193,20.75662865,126.63,126.59,7.9007]
[1741729138396,192.0,126.58,126.3,657.74228869]
[1741729138587,192.0,126.58,126.14,4.2658]
[1741729138588,12.85822865,126.31,126.14,4.2658]
[1741729138787,12.85822865,126.22,126.14,7.9288]
[1741729138990,35.9,126.29,126.14,7.9288]
[1741729139194,12.85822865,126.22,126.13,973.00666153]
[1741729139393,0.05189752,126.23,126.2,0.05574265]
[1741729139592,18.66519609,126.21,126.13,712.42666153]
[1741729139790,192.0,126.29,126.18,260.58]
[1741729140094,12.85822865,126.27,126.19,36.68]
[1741729140292,8.94101943,126.24,126.2,36.68]
[1741729140699,8.94101943,126.24,126.18,260.58]
[1741729140700,3.16851541,126.23,126.21,36.72]
[1741729140897,8.94101943,126.24,126.22,36.72]
[1741729141097,5.64677834,126.23,126.22,36.7]
[1741729141298,3.96106916,126.23,126.22,98.7]
[1741729141598,38.48449419,126.23,126.18,246.34650865]
[1741729141801,38.48449419,126.23,126.19,36.68]
[1741729141991,38.27659419,126.23,126.18,246.34650865]
[1741729142194,34.99059419,126.23,126.19,36.66]
[1741729142394,34.99059419,126.23,126.2,36.69386908]
[1741729142395,0.05714232,126.22,126.2,36.69386908]
[1741729142595,0.05714232,126.22,126.21,98.62]
[1741729142998,32.89382506,126.28,126.21,98.6]
[1741729143198,2.0665,126.32,126.21,98.6]
[1741729143199,0.34492361,126.29,126.21,98.6]
[1741729143501,24.25682019,126.22,126.21,64.38]
[1741729143696,0.34492361,126.29,126.21,98.6]
[1741729143903,0.34492361,126.3,126.21,98.6]
[1741729144098,9.1445799,126.3,126.21,98.6]
[1741729144401,8.77749291,126.29,126.22,36.66]
[1741729144601,0.05989491,126.27,126.24,0.05209125]
[1741729145798,0.39818491,126.27,126.24,0.05209125]
[1741729146103,0.05989491,126.27,126.24,0.05209125]
[1741729146402,0.39818491,126.27,126.24,0.05209125]
[1741729146702,44.20800799,126.26,126.23,10.12332512]
[1741729147502,44.20800799,126.26,126.22,36.5]
[1741729147901,44.20800799,126.26,126.23,0.05489732]
[1741729148102,44.20800799,126.26,126.21,36.48]
[1741729148602,0.23770378,126.22,126.21,36.48]
[1741729149003,0.23770378,126.22,126.21,98.48]
[1741729149693,0.23770378,126.22,126.21,36.34]
[1741729150303,0.23770378,126.22,126.21,36.32]
[1741729150500,44.44571177,126.22,126.21,36.32]
[1741729150704,0.05146278,126.23,126.21,98.32]
[1741729150898,3.96058576,126.28,126.21,36.3]
[1741729151094,7.12897236,126.27,126.21,36.3]
[1741729151294,351.76762603,126.22,126.21,36.3]
[1741729151503,351.76762603,126.22,126.21,36.24]
[1741729151805,353.74789207,126.22,126.21,79.24]
[1741729152002,353.74789207,126.22,126.21,81.62]
[1741729152302,496.6694867,126.22,126.21,81.62]
[1741729152903,496.6694867,126.22,126.21,79.24]
[1741729153106,496.6694867,126.22,126.21,79.16]
[1741729153504,496.6694867,126.22,126.21,81.54]
[1741729154205,38.47385737,126.22,126.21,81.54]
[1741729154401,38.47385737,126.22,126.21,79.16]
[1741729155303,38.47385737,126.22,126.21,35.98]
[1741729156200,36.49359133,126.22,126.21,43.9047]
[1741729156604,38.47378276,126.22,126.21,35.98]
[1741729156805,38.47378276,126.22,126.21,35.9]
[1741729157005,38.47378405,126.22,126.21,35.9]
[1741729157406,498.74933154,126.22,126.21,43.8247]
[1741729158513,498.74933154,126.22,126.21,35.9]
[1741729158806,501.91813117,126.22,126.18,282.12650865]
[1741729159009,1.98019272,126.21,126.18,282.12650865]
[1741729159305,1.98019272,126.2,126.18,290.05300865]
[1741729159605,1.98019272,126.19,126.18,290.05300865]
[1741729160204,1.98019272,126.19,126.18,254.27300865]
[1741729160407,965.8356546,126.19,126.18,289.97300865]
[1741729162811,965.8356546,126.19,126.18,254.27300865]
[1741729163109,965.8356546,126.19,126.18,289.81300865]
[1741729164307,1010.05474177,126.19,126.18,289.81300865]
[1741729164605,985.75144177,126.19,126.18,289.81300865]
[1741729165609,973.67994177,126.19,126.18,289.81300865]
[1741729165911,961.78454177,126.19,126.18,289.81300865]
[1741729166308,949.85884177,126.19,126.18,289.81300865]
[1741729166508,937.73624177,126.19,126.18,289.81300865]
[1741729166811,900.81134177,126.19,126.18,289.81300865]
[1741729167312,888.59254177,126.19,126.18,289.81300865]
[1741729167709,876.37464177,126.19,126.18,289.81300865]
[1741729167908,840.13984177,126.19,126.18,289.81300865]
[1741729168109,847.26833819,126.19,126.18,312.41165509]
[1741729168415,798.88443819,126.19,126.18,312.41165509]
[1741729168607,769.08373819,126.19,126.18,312.41165509]
[1741729168808,754.06953819,126.19,126.18,312.17389951]
[1741729169204,0.05359846,126.2,126.19,7.9259]
[1741729169507,3.22233475,126.2,126.19,7.9259]
[1741729169910,3.22233475,126.2,126.19,43.0259]
[1741729170116,644.29999308,126.2,126.19,43.0259]
[1741729170409,641.13125679,126.2,126.19,42.9859]
[1741729170606,644.30002628,126.2,126.19,42.9859]
[1741729170807,7.01e-05,126.2,126.19,57.65864644]
[1741729171112,1.37892776,126.33,126.19,57.65864644]
[1741729171313,5.48139162,126.26,126.19,57.65864644]
[1741729171513,13.8676527,126.2,126.19,57.65864644]
[1741729171710,5.27e-05,126.2,126.19,57.65864644]
[1741729172212,5.27e-05,126.2,126.19,65.58454644]
[1741729173414,5.27e-05,126.2,126.19,42.9859]
[1741729174211,5.713e-05,126.2,126.19,42.9859]
[1741729174613,0.05425765,126.21,126.2,7.9253]
[1741729174814,5.57068659,126.21,126.2,7.9253]
[1741729175204,425.60977376,126.29,126.2,24.97864644]
[1741729175515,22.59864644,126.29,126.2,22.59864644]
[1741729175705,7.9205,126.28,126.19,35.06]
[1741729175906,4.0779,126.28,126.19,35.06]
[1741729176316,0.06091577,126.25,126.24,7.9224]
[1741729176517,2.04119666,126.25,126.24,42.7424]
[1741729177812,2.04119666,126.25,126.24,42.08099741]
[1741729180021,2.04119666,126.25,126.24,303.48099741]
[1741729180221,2.38308564,126.25,126.24,303.48099741]
[1741729180723,2.38763077,126.25,126.24,303.48099741]
[1741729180922,5.5560221,126.25,126.24,303.48099741]
[1741729181315,5.20958799,126.25,126.24,289.22312029]
[1741729182023,0.06091577,126.25,126.24,297.14552029]
[1741729182321,5.20965747,126.25,126.24,297.14552029]
[1741729182515,5.55929399,126.25,126.24,297.14552029]
[1741729182717,5.20965747,126.25,126.24,297.14552029]
[1741729183325,5.20965747,126.25,126.24,285.73909113]
[1741729184026,5.20965747,126.25,126.24,347.37247898]
[1741729185722,0.06091577,126.25,126.24,361.82960141]
[1741729187220,4.82395088,126.25,126.24,361.82960141]
[1741729187923,4.82351749,126.25,126.24,361.82960141]
[1741729189323,4.77044845,126.25,126.24,361.82960141]
[1741729190229,4.77044845,126.25,126.24,300.19621356]
[1741729191332,2.1055,126.3,126.24,300.19621356]
[1741729192431,0.05999151,126.28,126.26,0.05489761]
[1741729193834,7.9209,126.27,126.26,0.05489761]
[1741729196333,25.19618236,126.27,126.24,300.19621356]
[1741729197038,7.9216,126.26,126.24,300.19621356]
[1741729197338,25.19688236,126.26,126.24,300.25629638]
[1741729197732,17.27528236,126.25,126.24,300.25629638]
[1741729199438,17.27528236,126.25,126.24,292.33389638]
[1741729199641,25.19748236,126.25,126.24,182.69189638]
[1741729200043,27.38198236,126.25,126.24,182.69189638]
[1741729200434,29.43448236,126.25,126.24,182.69189638]
[1741729200637,21.51228236,126.25,126.24,182.69189638]
[1741729201445,29.43448236,126.25,126.24,182.69189638]
[1741729203251,34.07082969,126.25,126.24,182.69189638]
[1741729205256,26.14862969,126.25,126.24,182.69189638]
[1741729205649,26.14862969,126.25,126.24,190.61469638]
[1741729205952,26.14861682,126.25,126.24,190.61469638]
[1741729212061,28.12891395,126.25,126.24,190.61469638]
[1741729215162,26.07641395,126.25,126.24,190.61469638]
[1741729215962,33.99861395,126.25,126.24,182.69189638]
[1741729216366,33.99860005,126.25,126.24,182.69189638]
[1741729216565,26.07640005,126.25,126.24,182.69189638]
[1741729217154,26.07640005,126.25,126.24,168.43393883]
[1741729217565,26.07640005,126.25,126.24,176.35673883]
[1741729217865,35.91805194,126.25,126.24,176.35673883]
[1741729219566,35.91805194,126.25,126.24,168.43393883]
[1741729219769,43.84025194,126.25,126.24,168.43393883]
[1741729220766,35.91805194,126.25,126.24,168.43393883]
[1741729222568,35.91805194,126.25,126.24,176.35673883]
[1741729223070,33.73355194,126.25,126.24,176.35673883]
[1741729223969,33.73355194,126.25,126.24,269.36288282]
[1741729225573,33.73355194,126.25,126.24,261.44008282]
[1741729225770,41.65575194,126.25,126.24,261.44008282]
[1741729226871,33.73355194,126.25,126.24,269.36288282]
[1741729227172,33.73355194,126.25,126.24,261.44008282]
[1741729227665,33.73355194,126.25,126.24,269.36288282]
[1741729231573,29.09721748,126.25,126.24,269.36288282]
[1741729232575,33.73816538,126.25,126.24,269.36288282]
[1741729232778,27.11693425,126.25,126.24,269.36288282]
[1741729232977,29.0972136,126.25,126.24,269.36288282]
[1741729233177,33.73809646,126.25,126.24,269.36288282]
[1741729234474,33.73842012,126.25,126.24,269.36288282]
[1741729234674,23.89676823,126.25,126.24,255.10469086]
[1741729234867,23.89679831,126.25,126.24,255.10469086]
[1741729235972,33.73636674,126.25,126.24,255.10469086]
[1741729236780,23.89679831,126.25,126.24,255.10469086]
[1741729241082,23.89297095,126.25,126.24,255.10469086]
[1741729245183,21.91267455,126.25,126.24,255.10469086]
[1741729245483,23.89297483,126.25,126.24,255.10469086]
[1741729247389,23.89295098,126.25,126.24,255.10469086]
[1741729247690,23.89295098,126.25,126.24,247.18189086]
[1741729248486,23.89147506,126.25,126.24,247.18189086]
[1741729249491,23.89147506,126.25,126.24,255.10469086]
[1741729250083,23.89147506,126.25,126.24,240.84589545]
[1741729251694,23.89185042,126.25,126.24,240.84589545]
[1741729252689,23.89185042,126.25,126.24,232.92309545]
[1741729253895,23.89185042,126.25,126.24,240.84589545]
[1741729262198,23.89506664,126.25,126.24,240.84589545]
[1741729268208,23.89222178,126.25,126.24,240.84589545]
[1741729273803,23.89222178,126.25,126.24,232.92309545]
[1741729274809,23.89222178,126.25,126.24,240.84589545]
[1741729275106,17.27528236,126.25,126.24,240.84589545]
[1741729275709,14.53916979,126.25,126.24,232.92309545]
[1741729276014,38.45598214,126.25,126.2,261.38]
[1741729276214,14.45532635,126.21,126.2,261.38]
[1741729276407,21.07229614,126.21,126.2,261.38]
[1741729276911,38.45598214,126.21,126.2,261.38]
[1741729278715,38.4566525,126.21,126.2,261.38]
[1741729278911,38.4566525,126.21,126.2,269.3053]
[1741729279319,38.4566525,126.21,126.2,261.38]
[1741729280717,31.83901235,126.21,126.2,261.38]
[1741729280913,38.44446558,126.21,126.2,261.38]
[1741729282518,23.98913923,126.21,126.2,261.38]
[1741729282918,31.91383923,126.21,126.2,261.38]
[1741729284321,46.36916558,126.21,126.2,261.38]
[1741729284822,54.69456558,126.21,126.2,31.00282083]
[1741729285120,46.36419365,126.21,126.2,31.00282083]
[1741729289019,31.9088673,126.21,126.2,31.00282083]
[1741729292826,46.36419365,126.21,126.2,31.00282083]
[1741729293223,46.35625653,126.21,126.2,31.00282083]
[1741729293423,46.35657602,126.21,126.2,31.00282083]
[1741729296940,41.74466723,126.21,126.2,31.00282083]
[1741729301446,27.28934088,126.21,126.2,31.00282083]
[1741729302038,31.90183264,126.21,126.2,31.00282083]
[1741729307443,27.28934088,126.21,126.2,31.00282083]
[1741729307643,31.90186629,126.21,126.2,31.00282083]
[1741729312750,31.90846459,126.21,126.2,31.00282083]
[1741729313251,31.9097452,126.21,126.2,31.00282083]
[1741729315445,31.9097452,126.21,126.2,18.74332083]
[1741729315646,40.82037155,126.21,126.14,261.5]
[1741729315952,14.45532635,126.17,126.14,261.5]
[1741729316143,6.6013592,126.16,126.14,261.5]
[1741729316348,6.6013592,126.15,126.14,261.5]
[1741729316742,14.5302592,126.15,126.14,261.5]
[1741729317048,31.9139452,126.15,126.14,261.5]
[1741729317553,31.91537186,126.15,126.14,261.5]
[1741729318954,31.91596662,126.15,126.14,261.5]
[1741729321759,31.91594676,126.15,126.14,261.5]
[1741729322758,31.91594676,126.15,126.14,275.95532635]
[1741729323448,31.91450516,126.15,126.14,261.5]
[1741729323854,31.91448931,126.15,126.14,261.5]
[1741729325161,31.91451614,126.15,126.14,261.5]
[1741729325557,38.44094249,126.15,126.1,22.85092635]
[1741729325855,7.9303,126.12,126.11,261.58]
[1741729326053,14.52939132,126.12,126.11,261.58]
[1741729326251,14.52631317,126.12,126.11,261.58]
[1741729326656,31.90999917,126.12,126.11,261.58]
[1741729329863,23.97969917,126.12,126.11,276.03532635]
[1741729330165,19.36617484,126.12,126.11,276.03532635]
[1741729330772,19.36617484,126.12,126.11,306.01532635]
[1741729330965,14.45532635,126.19,126.11,306.01532635]
[1741729331165,7.9273,126.17,126.14,14.45532635]
[1741729331364,4.60285073,126.16,126.14,14.45532635]
[1741729331569,14.45532635,126.19,126.14,14.45532635]
[1741729331762,4.60288507,126.18,126.14,14.45532635]
[1741729331959,4.60288507,126.17,126.14,14.45532635]
[1741729332158,4.60288507,126.16,126.15,0.05447761]
[1741729332867,0.06040079,126.17,126.15,0.05447761]
[1741729333263,4.60294807,126.16,126.15,0.05447761]
[1741729334968,0.06040079,126.17,126.15,0.05447761]
[1741729335464,22.38002635,126.21,126.16,44.35532635]
[1741729335769,4.60403209,126.2,126.16,44.35532635]
[1741729335958,4.60403209,126.19,126.16,44.35532635]
[1741729336269,4.60403209,126.18,126.16,44.35532635]
[1741729336475,7.9257,126.2,126.16,29.9]
[1741729336663,0.05676703,126.18,126.16,29.95882209]
[1741729338566,0.05676703,126.18,126.17,261.6]
[1741729338867,4.66079048,126.18,126.17,261.6]
[1741729341670,0.05676703,126.18,126.17,261.6]
[1741729342769,0.05676703,126.18,126.17,269.5272]
[1741729343068,2.03828767,126.18,126.17,269.5272]
[1741729343668,8.37965253,126.18,126.17,269.5272]
[1741729344068,12.99076789,126.18,126.17,269.5272]
[1741729345671,8.37965253,126.18,126.17,269.5272]
[1741729346172,12.99301244,126.18,126.17,269.5272]
[1741729348773,12.99419434,126.18,126.17,269.5272]
[1741729351069,12.99418774,126.18,126.17,269.5272]
[1741729351267,8.37964593,126.18,126.17,269.5272]
[1741729353767,6.39813189,126.18,126.17,269.5272]
[1741729353974,8.37950699,126.18,126.17,269.5272]
[1741729360776,8.37950699,126.18,126.17,283.98252635]
[1741729361474,6.39813189,126.18,126.17,283.98252635]
[1741729361673,8.37950341,126.18,126.17,283.98252635]
[1741729363075,8.37950171,126.18,126.17,283.98252635]
[1741729373281,13.00263947,126.18,126.17,283.98252635]
[1741729373783,8.37950171,126.18,126.17,283.98252635]
[1741729374082,13.00253923,126.18,126.17,283.98252635]
[1741729375280,13.00990942,126.18,126.17,283.98252635]
[1741729376384,13.00978711,126.18,126.17,283.98252635]
[1741729382294,13.00989702,126.18,126.17,283.98252635]
[1741729382787,8.37948931,126.18,126.17,283.98252635]
[1741729382992,13.01479865,126.18,126.17,283.98252635]
[1741729384795,13.0159237,126.18,126.17,283.98252635]
[1741729386796,13.01618647,126.18,126.17,283.98252635]
[1741729397209,13.01418902,126.18,126.17,283.98252635]
[1741729399210,7.9238,126.23,126.2,7.9247]
[1741729399411,6.61582442,126.22,126.19,44.23532635]
[1741729399610,7.9231,126.24,126.19,44.23532635]
[1741729399905,214.99982635,126.25,126.19,44.23532635]